bitfinex/quotes_BTCUSD_20240727
["timestamp","ask_amount","ask_price","bid_price","bid_amount"]
[1722093035917,0.497577,68985.0,68984.0,0.01200084]
[1722093036133,0.787495,68985.0,68984.0,0.01200084]
[1722093036382,0.434895,68982.0,68981.0,0.002]
[1722093036603,1.014755,68982.0,68981.0,0.002]
[1722093036820,0.824825,68982.0,68981.0,0.002]
[1722093037021,0.534895,68982.0,68981.0,0.002]
[1722093037423,0.824825,68982.0,68981.0,0.002]
[1722093038002,0.824825,68982.0,68981.0,0.004]
[1722093038837,0.534895,68982.0,68981.0,0.004]
[1722093039369,0.84757937,68982.0,68981.0,0.004]
[1722093039914,0.84757937,68982.0,68981.0,0.005]
[1722093040168,0.824825,68982.0,68981.0,0.005]
[1722093041077,0.95300405,68982.0,68981.0,0.005]
[1722093041290,0.847825,68982.0,68981.0,0.005]
[1722093042359,0.925125,68982.0,68981.0,0.003]
[1722093042562,1.215055,68982.0,68981.0,0.003]
[1722093042765,1.225055,68982.0,68981.0,0.003]
[1722093042971,1.30523936,68982.0,68981.0,0.003]
[1722093043410,1.30523936,68982.0,68981.0,0.002]
[1722093043640,0.95788027,68982.0,68981.0,0.002]
[1722093044210,0.94788027,68982.0,68981.0,0.002]
[1722093044386,0.65995027,68982.0,68981.0,0.002]
[1722093045004,0.937125,68982.0,68981.0,0.002]
[1722093046767,0.647195,68982.0,68981.0,0.002]
[1722093047071,0.112,68982.0,68981.0,0.002]
[1722093047299,0.156965,68982.0,68981.0,0.002]
[1722093047501,0.836825,68982.0,68981.0,0.01392596]
[1722093047711,0.546895,68982.0,68981.0,0.002]
[1722093047883,0.112,68982.0,68981.0,0.146967]
[1722093048084,0.112,68982.0,68981.0,0.0884358]
[1722093048284,0.13475438,68982.0,68981.0,0.01392596]
[1722093048491,0.03475438,68982.0,68981.0,0.01392596]
[1722093048711,0.002,68982.0,68981.0,0.01392596]
[1722093048913,0.004,68982.0,68981.0,0.01392596]
[1722093049776,0.004,68982.0,68981.0,0.15889296]
[1722093049980,0.004,68982.0,68981.0,0.44882696]
[1722093050469,0.004,68982.0,68981.0,0.15889296]
[1722093050681,0.004,68982.0,68981.0,0.73876096]
[1722093050900,0.004,68982.0,68981.0,1.20048656]
[1722093051156,0.004,68982.0,68981.0,1.39716787]
[1722093051349,0.01513976,68985.0,68981.0,1.39716787]
[1722093051350,0.00084,69021.0,69000.0,0.2119]
[1722093051494,0.00084,69021.0,68991.0,0.7]
[1722093051495,0.45077872,69015.0,69014.0,0.457294]
[1722093051695,0.00084,69021.0,69020.0,0.434656]
[1722093052058,0.00084,69021.0,69020.0,0.73481889]
[1722093052260,0.00084,69021.0,69020.0,0.51057044]
[1722093052489,0.00084,69021.0,69020.0,0.80034144]
[1722093053269,0.00084,69021.0,69020.0,0.80334144]
[1722093053270,0.00184,69021.0,69020.0,0.80334144]
[1722093053603,0.00184,69021.0,69020.0,0.51057044]
[1722093055206,0.00184,69021.0,69020.0,0.80634144]
[1722093055207,0.02557786,69021.0,69020.0,0.80634144]
[1722093055403,0.02557786,69021.0,69020.0,1.23361244]
[1722093055607,0.02657786,69021.0,69020.0,1.23861244]
[1722093056276,0.02657786,69021.0,69020.0,0.94884144]
[1722093057088,0.02657786,69021.0,69020.0,0.65907044]
[1722093057259,0.00384,69021.0,69020.0,0.02139189]
[1722093057460,0.148723,69021.0,69020.0,0.02139189]
[1722093057665,0.00384,69021.0,69020.0,0.011]
[1722093057998,0.148723,69021.0,69020.0,0.02215867]
[1722093058200,0.00384,69021.0,69020.0,0.02215867]
[1722093059163,0.00184,69021.0,69020.0,0.01615867]
[1722093059374,0.00184,69021.0,69020.0,0.16104367]
[1722093059566,0.00184,69021.0,69020.0,0.81754464]
[1722093059792,0.00184,69021.0,69020.0,0.74058567]
[1722093059956,0.00184,69021.0,69020.0,1.03035667]
[1722093060161,0.00184,69021.0,69020.0,0.73958567]
[1722093060357,0.02457796,69021.0,69020.0,0.73958567]
[1722093060583,0.01957796,69021.0,69020.0,1.13229354]
[1722093060987,0.1,69037.0,69028.0,0.289736]
[1722093061327,0.1,69037.0,69029.0,0.144866]
[1722093061328,0.2897,69037.0,69029.0,0.144866]
[1722093061534,0.1,69036.0,69030.0,0.1883252]
[1722093061743,0.1,69036.0,69034.0,0.144855]
[1722093061954,0.289658,69047.0,69030.0,0.05461026]
[1722093061955,0.144844,69040.0,69032.0,0.289718]
[1722093062150,0.0617,69049.0,69029.0,0.0613]
[1722093062151,0.0617,69049.0,69035.0,0.01114045]
[1722093062304,0.144842,69041.0,69035.0,0.01114045]
[1722093062545,0.312655,69048.0,69036.0,0.04122492]
[1722093062926,0.144844,69040.0,69036.0,0.04122492]
[1722093063178,0.023,69048.0,69036.0,0.04122492]
[1722093063389,0.147849,69037.0,69036.0,0.04122492]
[1722093063608,0.147849,69037.0,69023.0,0.0762]
[1722093063609,0.003,69037.0,69023.0,0.0762]
[1722093063810,0.003,69037.0,69018.0,0.1375]
[1722093063811,0.0795,69036.0,69018.0,0.1375]
[1722093064029,0.0795,69036.0,69023.0,0.289756]
[1722093064227,0.02273683,69032.0,69019.0,0.303524]
[1722093064486,0.289725,69031.0,69021.0,0.144883]
[1722093064624,0.02273683,69032.0,69019.0,0.01375]
[1722093064826,0.144867,69029.0,69023.0,0.144878]
[1722093065025,0.02273683,69032.0,69025.0,0.144874]
[1722093065230,0.02273683,69032.0,69024.0,0.144876]
[1722093065231,0.144866,69029.0,69024.0,0.144876]
[1722093065461,0.289718,69033.0,69025.0,0.144874]
[1722093065462,0.144865,69030.0,69025.0,0.144874]
[1722093065673,0.144865,69030.0,69024.0,0.144876]
[1722093065819,0.144865,69030.0,69025.0,0.144874]
[1722093066019,0.289718,69033.0,69025.0,0.144874]
[1722093066265,0.289706,69036.0,69027.0,0.14487]
[1722093066462,0.144857,69034.0,69028.0,0.18480282]
[1722093066662,0.144855,69035.0,69029.0,0.144866]
[1722093066886,0.144856,69034.0,69029.0,0.144866]
[1722093067181,0.144858,69034.0,69030.0,0.01114504]
[1722093067417,0.0795,69043.0,69030.0,0.01114504]
[1722093067418,0.144846,69039.0,69033.0,0.144857]
[1722093067564,0.144844,69040.0,69034.0,0.144855]
[1722093067767,0.144844,69040.0,69034.0,0.15597573]
[1722093067947,0.144841,69041.0,69035.0,0.144853]
[1722093068148,0.28968,69042.0,69035.0,0.01111977]
[1722093068149,0.144843,69040.0,69035.0,0.01111977]
[1722093068353,0.144841,69041.0,69035.0,0.15597277]
[1722093068556,0.289657,69047.0,69036.0,0.36324298]
[1722093068759,0.144835,69044.0,69038.0,0.144847]
[1722093068965,0.1,69043.0,69038.0,0.144847]
[1722093069161,0.1,69043.0,69039.0,0.01109239]
[1722093069535,0.289657,69047.0,69039.0,0.01109239]
[1722093069536,0.144824,69049.0,69042.0,0.144838]
[1722093069736,0.244828,69048.0,69041.0,0.14484]
[1722093069906,0.1,69048.0,69042.0,0.289676]
[1722093070132,0.1,69048.0,69043.0,0.19183621]
[1722093070291,0.1,69048.0,69043.0,0.19183821]
[1722093070492,0.1,69048.0,69043.0,0.18983821]
[1722093071251,0.007,69048.0,69043.0,0.04500121]
[1722093071443,0.007,69048.0,69045.0,0.144831]
[1722093071652,0.007,69048.0,69046.0,0.04180653]
[1722093071887,0.007,69048.0,69046.0,0.0528922]
[1722093072093,0.007,69048.0,69046.0,0.0498922]
[1722093072516,0.02973168,69048.0,69046.0,0.0498922]
[1722093072685,0.297763,69061.0,69048.0,0.0823]
[1722093072686,0.00816,69061.0,69048.0,0.0823]
[1722093072919,0.144809,69057.0,69051.0,0.144819]
[1722093073123,0.144806,69058.0,69052.0,0.144817]
[1722093073305,0.144808,69057.0,69052.0,0.01107991]
[1722093073533,0.00816,69060.0,69054.0,0.144813]
[1722093073954,0.00816,69060.0,69053.0,0.05922439]
[1722093073955,0.152961,69060.0,69055.0,0.01107703]
[1722093074158,0.10816,69059.0,69055.0,0.01107703]
[1722093074292,0.1,69058.0,69054.0,0.144814]
[1722093074486,0.00816,69059.0,69056.0,0.01107607]
[1722093074688,0.07512979,69058.0,69055.0,0.01107703]
[1722093074889,0.21993579,69058.0,69057.0,0.01107511]
[1722093075207,0.21993579,69058.0,69050.0,0.289642]
[1722093075208,0.17512979,69058.0,69053.0,0.144815]
[1722093075409,0.1,69057.0,69051.0,0.28964]
[1722093075614,0.101,69057.0,69053.0,0.144816]
[1722093075970,0.02272992,69056.0,69053.0,0.144816]
[1722093076258,0.289629,69054.0,69044.0,0.10411215]
[1722093076473,0.28965,69049.0,69040.0,0.4748]
[1722093076640,0.07512979,69050.0,69041.0,0.12036932]
[1722093076844,0.144831,69046.0,69042.0,0.12036932]
[1722093077052,0.07512979,69050.0,69043.0,0.14689055]
[1722093077252,0.144835,69044.0,69038.0,0.144847]
[1722093077599,0.144843,69040.0,69039.0,0.12037805]
[1722093077766,0.0621,69048.0,69039.0,0.12037805]
[1722093077965,0.144842,69041.0,69040.0,0.12037805]
[1722093078165,0.144842,69041.0,69040.0,0.14690096]
[1722093079365,0.144841,69041.0,69040.0,0.14690096]
[1722093079860,0.16757449,69041.0,69040.0,0.14690096]
[1722093080279,0.16757449,69041.0,69040.0,0.3782713]
[1722093080454,0.16757449,69041.0,69040.0,0.35174839]
[1722093080660,0.16757449,69041.0,69040.0,0.35175432]
[1722093080919,0.45725649,69041.0,69040.0,0.35175432]
[1722093081055,0.724205,69041.0,69040.0,0.35175432]
[1722093081256,0.724205,69041.0,69040.0,0.35175731]
[1722093081503,0.725205,69041.0,69040.0,0.13038253]
[1722093081707,0.725205,69041.0,69040.0,0.14144474]
[1722093081931,0.725205,69041.0,69040.0,0.13038253]
[1722093082091,0.435523,69041.0,69040.0,0.13038253]
[1722093082493,0.145841,69041.0,69040.0,0.36176758]
[1722093082690,0.145841,69041.0,69040.0,0.32203166]
[1722093082890,0.435523,69041.0,69040.0,0.32203166]
[1722093083090,0.001,69041.0,69040.0,0.36902013]
[1722093083340,0.145841,69041.0,69040.0,0.36902013]
[1722093083548,0.436523,69041.0,69040.0,0.38002013]
[1722093084086,0.146841,69041.0,69040.0,0.33303166]
[1722093084405,0.45925716,69041.0,69040.0,0.33303166]
[1722093084615,0.16957516,69041.0,69040.0,0.33303166]
[1722093084815,0.436523,69041.0,69040.0,0.33303166]
[1722093085018,1.015887,69041.0,69040.0,0.15244759]
[1722093085232,1.153887,69041.0,69040.0,0.15244759]
[1722093085454,1.153887,69041.0,69040.0,0.14138253]
[1722093086138,1.153887,69041.0,69040.0,0.13138253]
[1722093086139,1.152887,69041.0,69040.0,0.13138253]
[1722093086339,1.151887,69041.0,69040.0,0.12038253]
[1722093086664,1.151887,69041.0,69040.0,0.12238253]
[1722093086870,1.151887,69041.0,69040.0,0.12538253]
[1722093087116,1.151887,69041.0,69040.0,0.1253995]
[1722093087890,1.151887,69041.0,69040.0,0.1233995]
[1722093088104,1.17462278,69041.0,69040.0,0.1233995]
[1722093088548,1.151887,69041.0,69040.0,0.1233995]
[1722093089382,1.151887,69041.0,69040.0,0.1253995]
[1722093090440,0.724205,69041.0,69040.0,0.1253995]
[1722093091391,0.0801,69046.0,69040.0,0.1253995]
[1722093091592,0.1675759,69041.0,69040.0,0.08458721]
[1722093091837,0.4572579,69041.0,69040.0,0.13645797]
[1722093092056,0.7469399,69041.0,69040.0,0.13645797]
[1722093092236,0.724205,69041.0,69040.0,0.13645797]
[1722093092389,0.724205,69041.0,69040.0,0.12538878]
[1722093092850,0.724205,69041.0,69040.0,0.12338878]
[1722093093149,0.144841,69041.0,69040.0,0.12338878]
[1722093093564,0.144841,69041.0,69040.0,0.13447328]
[1722093093814,0.724205,69041.0,69040.0,0.13447328]
[1722093094230,0.724205,69041.0,69040.0,0.12539185]
[1722093094867,0.434523,69041.0,69040.0,0.12539185]
[1722093095203,0.45725756,69041.0,69040.0,0.12539185]
[1722093095616,0.02273456,69041.0,69040.0,0.12539185]
[1722093095926,0.02273456,69041.0,69040.0,0.13647328]
[1722093096124,0.02273456,69041.0,69040.0,0.55030413]
[1722093096301,0.02273456,69041.0,69040.0,0.88550148]
[1722093096522,0.02273456,69041.0,69040.0,0.41967306]
[1722093096731,0.02273456,69041.0,69040.0,0.37513778]
[1722093096944,0.02273456,69041.0,69040.0,0.70349341]
[1722093097113,0.02273456,69041.0,69040.0,0.38204437]
[1722093097316,0.02273456,69041.0,69040.0,0.68928095]
[1722093097498,0.02273456,69041.0,69040.0,0.78332643]
[1722093097698,0.02273456,69041.0,69040.0,0.89168284]
[1722093098149,0.02273456,69041.0,69040.0,0.63848343]
[1722093098309,0.02273456,69041.0,69040.0,0.92090223]
[1722093098514,0.02273456,69041.0,69040.0,0.77605923]
[1722093099223,0.02273456,69041.0,69040.0,0.20154499]
[1722093099430,0.02273456,69041.0,69040.0,0.13646099]
[1722093099629,0.16757556,69041.0,69040.0,0.13646099]
[1722093100300,0.02273456,69041.0,69040.0,0.17985342]
[1722093100474,0.02273456,69041.0,69040.0,0.32469642]
[1722093100696,0.02273456,69041.0,69040.0,0.20154499]
[1722093100889,0.144833,69045.0,69040.0,0.34638799]
[1722093101105,0.144833,69045.0,69041.0,0.16377067]
[1722093101258,0.144834,69045.0,69042.0,0.12037956]
[1722093101507,0.144835,69044.0,69043.0,0.12037956]
[1722093101905,0.144835,69044.0,69043.0,0.13145811]
[1722093102242,0.289658,69047.0,69043.0,0.13145811]
[1722093102455,0.003,69045.0,69044.0,0.12037956]
[1722093102656,0.003,69045.0,69044.0,0.13145715]
[1722093102829,0.147833,69045.0,69044.0,0.13145715]
[1722093103029,0.144833,69045.0,69044.0,0.13145715]
[1722093103228,0.144833,69045.0,69044.0,0.13045715]
[1722093103432,0.0624,69049.0,69044.0,0.16589446]
[1722093103641,0.002,69045.0,69044.0,0.1913499]
[1722093103841,0.002,69045.0,69044.0,0.4810199]
[1722093104043,0.144822,69050.0,69044.0,0.0465149]
[1722093104208,0.144822,69050.0,69045.0,0.20225993]
[1722093104407,0.289638,69052.0,69044.0,0.01107759]
[1722093104408,0.289642,69051.0,69044.0,0.01107759]
[1722093104650,0.16755648,69049.0,69043.0,0.144836]
[1722093104848,0.144829,69047.0,69045.0,0.01106323]
[1722093105078,0.144829,69047.0,69040.0,0.40557511]
[1722093105079,0.144831,69046.0,69040.0,0.144842]
[1722093105279,0.289658,69047.0,69046.0,0.01106227]
[1722093105280,0.724144,69047.0,69046.0,0.01106227]
[1722093105449,0.144834,69045.0,69039.0,0.145769]
[1722093105632,0.00816,69060.0,69058.0,0.722027]
[1722093105819,0.00816,69060.0,69058.0,0.432416]
[1722093106172,0.00816,69060.0,69058.0,0.73307355]
[1722093107158,0.00816,69060.0,69059.0,0.50001]
[1722093107355,0.00816,69060.0,69059.0,1.24022368]
[1722093107576,0.00816,69060.0,69059.0,1.83310685]
[1722093107725,0.0308844,69060.0,69059.0,1.76802764]
[1722093107939,0.0308844,69060.0,69059.0,2.05763464]
[1722093108136,0.0308844,69060.0,69059.0,1.80133304]
[1722093108343,0.0308844,69060.0,69059.0,1.55587059]
[1722093108774,0.00816,69060.0,69059.0,1.55587059]
[1722093109676,0.00816,69060.0,69059.0,1.74945132]
[1722093109897,0.00816,69060.0,69059.0,2.06948744]
[1722093110103,0.00816,69060.0,69059.0,2.08064911]
[1722093110257,0.00816,69060.0,69059.0,1.8568958]
[1722093110463,0.00816,69060.0,69059.0,2.10229103]
[1722093110664,0.00816,69060.0,69059.0,2.37275853]
[1722093110904,0.01016,69060.0,69059.0,2.07952539]
[1722093111160,0.01016,69060.0,69059.0,2.09759251]
[1722093111161,0.00916,69060.0,69059.0,2.09759251]
[1722093111406,0.00916,69060.0,69059.0,2.1716492]
[1722093111617,0.01016,69060.0,69059.0,2.1856492]
[1722093112424,0.01016,69060.0,69059.0,1.95442989]
[1722093112425,0.03288241,69060.0,69059.0,1.95442989]
[1722093112600,0.01016,69060.0,69059.0,1.95442989]
[1722093112778,0.01016,69060.0,69059.0,1.60337028]
[1722093112983,0.01016,69060.0,69059.0,1.00465659]
[1722093113246,0.01016,69060.0,69059.0,0.90776259]
[1722093113459,0.01016,69060.0,69059.0,0.76306259]
[1722093113740,0.01016,69060.0,69059.0,0.47345559]
[1722093114533,0.01016,69060.0,69059.0,0.46645559]
[1722093114774,0.01016,69060.0,69059.0,0.76247925]
[1722093115613,0.03288548,69060.0,69059.0,0.76247925]
[1722093115779,0.03288548,69060.0,69059.0,0.87515383]
[1722093115980,0.03288548,69060.0,69059.0,0.76247925]
[1722093117228,0.03288548,69060.0,69059.0,1.05208625]
[1722093117383,0.03288548,69060.0,69059.0,1.46201926]
[1722093117584,0.03288548,69060.0,69059.0,1.60671926]
[1722093117814,0.01016,69060.0,69059.0,1.70671926]
[1722093117997,0.01016,69060.0,69059.0,1.70871926]
[1722093118695,0.01016,69060.0,69059.0,1.85897883]
[1722093119386,0.00816,69061.0,69060.0,1.305213]
[1722093119548,0.00816,69061.0,69060.0,1.6757798]
[1722093119752,0.002,69069.0,69065.0,0.002]
[1722093119969,0.002,69069.0,69068.0,0.646253]
[1722093120156,0.002,69069.0,69068.0,1.34569823]
[1722093120319,0.002,69069.0,69068.0,1.64568266]
[1722093121197,0.02472101,69069.0,69068.0,1.64568266]
[1722093121572,0.02472101,69069.0,69068.0,1.35611366]
[1722093121710,0.02572101,69069.0,69068.0,1.37011366]
[1722093121913,0.02572101,69069.0,69068.0,0.57907566]
[1722093122114,0.02572101,69069.0,69068.0,0.5601042]
[1722093122726,0.02572101,69069.0,69068.0,0.5741042]
[1722093122727,0.02672101,69069.0,69068.0,0.5741042]
[1722093122942,0.02672101,69069.0,69068.0,0.03841543]
[1722093123935,0.17150301,69069.0,69068.0,0.03841543]
[1722093124190,0.46106801,69069.0,69068.0,0.028]
[1722093125480,0.02672101,69069.0,69068.0,0.028]
[1722093125883,0.02672101,69069.0,69068.0,0.172784]
[1722093126096,0.02672101,69069.0,69068.0,0.18171151]
[1722093126330,0.02672101,69069.0,69068.0,0.03692751]
[1722093126494,0.02672101,69069.0,69068.0,0.18171151]
[1722093126699,0.02672101,69069.0,69068.0,0.80797806]
[1722093127041,0.02672101,69069.0,69068.0,0.92828698]
[1722093127245,0.02672101,69069.0,69068.0,1.21785598]
[1722093127469,0.02672101,69069.0,69068.0,0.15723897]
[1722093127670,0.17150301,69069.0,69068.0,0.03692751]
[1722093127892,0.75063301,69069.0,69068.0,0.03692751]
[1722093128016,1.094777,69069.0,69068.0,0.028]
[1722093128214,0.805212,69069.0,69068.0,0.028]
[1722093129424,0.804212,69069.0,69068.0,0.014]
[1722093129874,0.804212,69069.0,69068.0,0.017]
[1722093130192,0.803212,69069.0,69068.0,0.003]
[1722093130400,1.256477,69069.0,69068.0,0.003]
[1722093130602,1.256477,69069.0,69044.0,0.00892305]
[1722093130603,0.575404,69060.0,69044.0,0.00892305]
[1722093130884,1.15461,69060.0,69044.0,0.00892305]
[1722093131486,1.15461,69060.0,69040.0,0.4748]
[1722093132110,1.467213,69060.0,69040.0,0.4748]
[1722093132313,1.567213,69060.0,69040.0,0.4748]
[1722093132679,1.013887,69041.0,69040.0,0.4748]
[1722093132873,0.43453,69040.0,69039.0,0.000924]
[1722093133082,1.013904,69040.0,69039.0,0.000924]
[1722093135445,1.013904,69040.0,69039.0,0.002924]
[1722093136021,1.03664006,69040.0,69039.0,0.002924]
[1722093136247,1.013904,69040.0,69039.0,0.002924]
[1722093136615,1.326591,69040.0,69039.0,0.002924]
[1722093136816,1.567591,69040.0,69039.0,0.002924]
[1722093137073,1.857278,69040.0,69039.0,0.002924]
[1722093137727,1.254904,69040.0,69039.0,0.005924]
[1722093138495,1.277904,69040.0,69039.0,0.005924]
[1722093138658,1.277904,69040.0,69039.0,0.002924]
[1722093138858,1.567591,69040.0,69039.0,0.000924]
[1722093139097,1.571591,69040.0,69039.0,0.000924]
[1722093139500,1.59833015,69040.0,69039.0,0.000924]
[1722093139707,1.59433015,69040.0,69039.0,0.000924]
[1722093139860,1.571591,69040.0,69039.0,0.000924]
[1722093140080,1.575591,69040.0,69039.0,0.000924]
[1722093142088,1.865278,69040.0,69039.0,0.000924]
[1722093142288,1.865278,69040.0,69039.0,1e-06]
[1722093142289,2.01553757,69040.0,69039.0,1e-06]
[1722093142701,2.30522457,69040.0,69039.0,1e-06]
[1722093142944,1.865278,69040.0,69039.0,1e-06]
[1722093144108,2.154965,69040.0,69039.0,1e-06]
[1722093144510,2.17770766,69040.0,69039.0,1e-06]
[1722093144790,2.154965,69040.0,69039.0,1e-06]
[1722093145394,0.144921,69003.0,69002.0,0.59177872]
[1722093145618,0.434763,69003.0,69002.0,0.45077872]
[1722093145791,0.724605,69003.0,69002.0,0.00898671]
[1722093146171,0.141,69013.0,68993.0,0.008976]
[1722093146369,0.289811,69011.0,68993.0,0.008976]
[1722093146572,0.289811,69011.0,68994.0,0.0089933]
[1722093146783,0.212421,69003.0,69002.0,0.009]
[1722093146978,1.015447,69003.0,69002.0,0.009]
[1722093147186,1.081947,69003.0,69002.0,0.009]
[1722093147547,1.20389525,69003.0,69002.0,0.009]
[1722093147749,1.30389525,69003.0,69002.0,0.009]
[1722093148144,1.281147,69003.0,69002.0,0.009]
[1722093148814,0.7247,68994.0,68993.0,0.009976]
[1722093149276,0.7247,68994.0,68993.0,0.010976]
[1722093149536,0.14494,68994.0,68993.0,0.009976]
[1722093149742,0.289847,69002.0,68994.0,0.144939]
[1722093149960,0.289851,69001.0,68995.0,0.0526903]
[1722093150183,0.107,69003.0,68995.0,0.06172327]
[1722093150417,0.009,69011.0,68995.0,0.06172327]
[1722093150643,0.289831,69006.0,68996.0,0.144935]
[1722093150865,0.0665,69014.0,68995.0,0.00903297]
[1722093150866,0.144911,69008.0,68995.0,0.00903297]
[1722093150992,0.0665,69014.0,68999.0,0.289857]
[1722093151196,0.289821,69009.0,69001.0,0.144924]
[1722093151399,0.003,69003.0,69002.0,0.0090272]
[1722093151597,0.435542,69003.0,69002.0,0.0090272]
[1722093151787,0.435542,69003.0,68989.0,0.008976]
[1722093151788,0.14494,68994.0,68989.0,0.008976]
[1722093151993,0.43482,68994.0,68989.0,0.008976]
[1722093153010,0.43482,68994.0,68993.0,0.008976]
[1722093153426,0.7247,68994.0,68993.0,0.008976]
[1722093154084,0.7247,68994.0,68993.0,0.009976]
[1722093154295,1.01458,68994.0,68993.0,0.009976]
[1722093154569,1.15728,68994.0,68993.0,0.008976]
[1722093154784,1.18028,68994.0,68993.0,0.008976]
[1722093155221,1.18128,68994.0,68993.0,0.012976]
[1722093155482,1.57116,68994.0,68993.0,0.012976]
[1722093155683,1.57116,68994.0,68993.0,0.008976]
[1722093155684,1.57016,68994.0,68993.0,0.008976]
[1722093156040,1.59291181,68994.0,68993.0,0.008976]
[1722093158281,1.31703181,68994.0,68993.0,0.003976]
[1722093158485,1.33103181,68994.0,68993.0,0.004976]
[1722093159049,0.28169181,68994.0,68993.0,0.004976]
[1722093159217,0.15075181,68994.0,68993.0,0.12545438]
[1722093159419,0.19569181,68994.0,68993.0,0.13889742]
[1722093159641,0.19569181,68994.0,68993.0,0.14809997]
[1722093159642,0.29569181,68994.0,68993.0,0.14809997]
[1722093159858,0.28169181,68994.0,68993.0,0.13465693]
[1722093160064,0.03675181,68994.0,68993.0,0.12545438]
[1722093160263,0.03675181,68994.0,68993.0,0.13465693]
[1722093160483,0.144928,69000.0,68994.0,0.1439]
[1722093160638,0.144932,68998.0,68995.0,0.12047838]
[1722093160849,0.0665,69005.0,68996.0,0.12047838]
[1722093160850,0.289843,69003.0,68996.0,0.12047838]
[1722093161047,0.0665,69005.0,68996.0,0.12047838]
[1722093161048,0.144931,68998.0,68997.0,0.12047838]
[1722093161249,0.289847,69002.0,68997.0,0.12967763]
[1722093161448,0.144926,69001.0,68998.0,0.12047838]
[1722093161673,0.289847,69002.0,68999.0,0.10947838]
[1722093161674,0.144927,69000.0,68999.0,0.10947838]
[1722093161910,0.724637,69000.0,68999.0,0.11867599]
[1722093162340,0.724637,69000.0,68999.0,0.10947838]
[1722093163297,0.434782,69000.0,68999.0,0.12112622]
[1722093163507,0.144927,69000.0,68999.0,0.01164784]
[1722093163727,0.144927,69000.0,68999.0,0.00919761]
[1722093163728,0.144928,69000.0,68999.0,0.00919761]
[1722093163881,0.144926,69001.0,68997.0,0.007]
[1722093164083,0.02274785,69000.0,68999.0,0.00919761]
[1722093164290,0.144929,68999.0,68998.0,0.00919843]
[1722093164539,0.144932,68998.0,68995.0,0.05083273]
[1722093164742,0.144932,68998.0,68995.0,0.04083273]
[1722093165059,0.28986,68999.0,68995.0,0.04083273]
[1722093165298,0.02274785,69000.0,68993.0,0.003976]
[1722093165485,0.14494,68994.0,68993.0,0.003976]
[1722093165643,0.14494,68994.0,68993.0,0.18467804]
[1722093166230,0.43482,68994.0,68993.0,0.18467804]
[1722093166440,0.43482,68994.0,68993.0,0.003976]
[1722093166623,0.43482,68994.0,68993.0,0.18468541]
[1722093166830,0.43482,68994.0,68993.0,0.003976]
[1722093166970,0.7247,68994.0,68993.0,0.003976]
[1722093167376,0.43482,68994.0,68993.0,0.003976]
[1722093167582,0.43482,68994.0,68993.0,0.18468743]
[1722093167583,0.7247,68994.0,68993.0,0.18468743]
[1722093168000,0.7247,68994.0,68993.0,0.013976]
[1722093168437,0.7247,68994.0,68993.0,0.003976]
[1722093168639,0.7247,68994.0,68993.0,0.19168761]
[1722093169166,0.7247,68994.0,68993.0,0.19768761]
[1722093169561,0.8029,68994.0,68993.0,0.19768761]
[1722093169761,1.15288,68994.0,68993.0,0.32735615]
[1722093169938,1.15288,68994.0,68993.0,0.02617026]
[1722093170142,1.15288,68994.0,68993.0,0.1466457]
[1722093170308,1.15288,68994.0,68993.0,0.13745144]
[1722093170309,1.17588,68994.0,68993.0,0.13745144]
[1722093170871,1.7123359,68994.0,68993.0,0.13745144]
[1722093171214,1.9186359,68994.0,68993.0,0.016976]
[1722093171416,2.2085159,68994.0,68993.0,0.016976]
[1722093171617,1.77206,68994.0,68993.0,0.009976]
[1722093172271,1.014755,68982.0,68981.0,0.002]
[1722093172486,1.304685,68982.0,68981.0,0.12251779]
[1722093172695,1.427685,68982.0,68981.0,0.12251779]
[1722093173294,1.427685,68982.0,68981.0,0.12251683]
[1722093173534,1.137755,68982.0,68981.0,0.12251683]
[1722093174060,1.137755,68982.0,68981.0,0.12351683]
[1722093174061,1.6797605,68982.0,68981.0,0.12351683]
[1722093174357,1.576985,68982.0,68981.0,0.12351683]
[1722093174939,1.576985,68982.0,68981.0,0.12596783]
[1722093175108,1.576985,68982.0,68981.0,0.006451]
[1722093175508,1.576985,68982.0,68981.0,0.005451]
[1722093175720,1.59074206,68982.0,68981.0,0.12597509]
[1722093176002,1.567985,68982.0,68981.0,0.12597509]
[1722093176172,1.567985,68982.0,68981.0,0.004451]
[1722093176173,2.400855,68982.0,68981.0,0.004451]
[1722093176375,2.55111457,68982.0,68981.0,0.004451]
[1722093176577,2.55111457,68982.0,68981.0,0.005451]
[1722093176578,2.55311457,68982.0,68981.0,0.005451]
[1722093176780,2.56211457,68982.0,68981.0,0.005451]
[1722093177358,2.55311457,68982.0,68981.0,0.005451]
[1722093177730,2.327715,68982.0,68981.0,0.005451]
[1722093178205,2.414855,68982.0,68981.0,0.005451]
[1722093178313,2.414855,68982.0,68971.0,0.002]
[1722093178565,2.414855,68982.0,68960.0,0.04317877]
[1722093178566,0.145026,68953.0,68952.0,0.45077872]
[1722093178793,0.145026,68953.0,68952.0,0.57133925]
[1722093178794,0.82513,68953.0,68952.0,0.57133925]
[1722093178996,1.428234,68953.0,68952.0,0.13116638]
[1722093179202,1.428234,68953.0,68952.0,0.12056053]
[1722093179399,1.305252,68952.0,68951.0,0.010976]
[1722093179601,1.305252,68952.0,68951.0,0.1315438]
[1722093179602,1.428252,68952.0,68951.0,0.1315438]
[1722093180220,0.84814,68952.0,68951.0,0.1315438]
[1722093180646,1.138196,68952.0,68951.0,0.14138755]
[1722093180847,1.145196,68952.0,68951.0,0.1315438]
[1722093181025,1.151196,68952.0,68951.0,0.1325438]
[1722093181225,1.777252,68952.0,68951.0,0.13254242]
[1722093181500,1.777252,68952.0,68951.0,0.011976]
[1722093181614,1.837352,68952.0,68951.0,0.011976]
[1722093182254,1.579552,68952.0,68951.0,0.011976]
[1722093182471,1.72981157,68952.0,68951.0,0.011976]
[1722093182671,1.566552,68952.0,68951.0,0.010976]
[1722093182874,1.276496,68952.0,68951.0,0.010976]
[1722093183133,1.286496,68952.0,68951.0,0.010976]